[Event "Late-Titled-Tuesday-Blitz-November-28-2023"]
[Site "Chess.com"]
[Date "2023.11.28"]
[Round "1"]
[White "Likvidator228"]
[Black "serena-maria"]
[Result "1-0"]
[WhiteElo "2576"]
[BlackElo "2238"]
[TimeControl "180+1"]
[EndTime "14:08:42 PST"]
[Termination "Likvidator228 won by checkmate"]

1. c4 {[%clk 0:02:59.8]} 1... Nf6 {[%clk 0:02:59.6]} 2. Nc3 {[%clk 0:02:59.7]}
2... g6 {[%clk 0:02:59.2]} 3. d4 {[%clk 0:02:59.7]} 3... Bg7 {[%clk 0:02:59.4]}
4. e4 {[%clk 0:02:59.8]} 4... d6 {[%clk 0:02:58.7]} 5. Nf3 {[%clk 0:02:57.5]}
5... O-O {[%clk 0:02:58.8]} 6. Be2 {[%clk 0:02:57]} 6... Nc6 {[%clk 0:02:59.1]}
7. d5 {[%clk 0:02:56.5]} 7... Ne5 {[%clk 0:02:59.1]} 8. Nxe5 {[%clk 0:02:56.3]}
8... dxe5 {[%clk 0:03:00]} 9. O-O {[%clk 0:02:56.8]} 9... Nd7 {[%clk 0:02:59.9]}
10. f3 {[%clk 0:02:55.3]} 10... f5 {[%clk 0:03:00.1]} 11. Be3 {[%clk 0:02:55.5]}
11... f4 {[%clk 0:02:59.8]} 12. Bf2 {[%clk 0:02:55.6]} 12... g5 {[%clk
0:03:00.2]} 13. c5 {[%clk 0:02:53.1]} 13... Nf6 {[%clk 0:03:00.2]} 14. b4 {[%clk
0:02:51.7]} 14... a5 {[%clk 0:02:58.7]} 15. a3 {[%clk 0:02:51.2]} 15... h5
{[%clk 0:02:55.8]} 16. h3 {[%clk 0:02:48.9]} 16... Kh7 {[%clk 0:02:43.9]} 17. b5
{[%clk 0:02:42]} 17... Bh6 {[%clk 0:02:42.4]} 18. a4 {[%clk 0:02:37]} 18... Rg8
{[%clk 0:02:34]} 19. d6 {[%clk 0:02:26.5]} 19... exd6 {[%clk 0:02:30.7]} 20. Nd5
{[%clk 0:02:25.2]} 20... Rg7 {[%clk 0:01:55.2]} 21. b6 {[%clk 0:02:17.4]} 21...
Nxd5 {[%clk 0:01:48.4]} 22. Qxd5 {[%clk 0:02:14.3]} 22... g4 {[%clk 0:01:26]}
23. bxc7 {[%clk 0:02:03.3]} 23... Qxc7 {[%clk 0:01:25.8]} 24. cxd6 {[%clk
0:02:00.7]} 24... Qd8 {[%clk 0:01:23.5]} 25. fxg4 {[%clk 0:01:44.5]} 25... hxg4
{[%clk 0:01:21.7]} 26. hxg4 {[%clk 0:01:35.4]} 26... Bxg4 {[%clk 0:01:22.6]} 27.
Bxg4 {[%clk 0:01:33.2]} 27... Rxg4 {[%clk 0:01:23.5]} 28. Qxe5 {[%clk
0:01:24.2]} 28... Rg5 {[%clk 0:00:49.2]} 29. Qe7+ {[%clk 0:01:16.7]} 29... Qxe7
{[%clk 0:00:49.2]} 30. dxe7 {[%clk 0:01:17.6]} 30... Rag8 {[%clk 0:00:47.1]} 31.
Kh1 {[%clk 0:01:17.8]} 31... Re8 {[%clk 0:00:44.4]} 32. Kg1 {[%clk 0:00:51.7]}
32... f3 {[%clk 0:00:32.7]} 33. g3 {[%clk 0:00:45.7]} 33... Rxe7 {[%clk
0:00:32.7]} 34. Rfe1 {[%clk 0:00:44.7]} 34... Rg4 {[%clk 0:00:30.6]} 35. Rab1
{[%clk 0:00:39.6]} 35... Bf4 {[%clk 0:00:29.2]} 36. Kh2 {[%clk 0:00:37.6]} 36...
Bd6 {[%clk 0:00:20.2]} 37. Kh3 {[%clk 0:00:35.5]} 37... Reg7 {[%clk 0:00:18]}
38. e5 {[%clk 0:00:35.8]} 38... Bb8 {[%clk 0:00:17.2]} 39. Rb3 {[%clk
0:00:30.9]} 39... Rxa4 {[%clk 0:00:16.8]} 40. Rxf3 {[%clk 0:00:31]} 40... Re7
{[%clk 0:00:16.6]} 41. e6 {[%clk 0:00:30.2]} 41... Rc4 {[%clk 0:00:16.4]} 42.
Rf7+ {[%clk 0:00:26.8]} 42... Rxf7 {[%clk 0:00:16.5]} 43. exf7 {[%clk
0:00:27.7]} 43... Kg7 {[%clk 0:00:17]} 44. Re8 {[%clk 0:00:27.3]} 44... Bd6
{[%clk 0:00:16.9]} 45. Rd8 {[%clk 0:00:23]} 45... Be7 {[%clk 0:00:16]} 46. Rd7
{[%clk 0:00:22.9]} 46... Kxf7 {[%clk 0:00:16.4]} 47. Rxb7 {[%clk 0:00:22.9]}
47... Kf6 {[%clk 0:00:15.1]} 48. g4 {[%clk 0:00:22]} 48... Bd6 {[%clk
0:00:14.2]} 49. Bh4+ {[%clk 0:00:20]} 49... Ke6 {[%clk 0:00:11.7]} 50. Ra7
{[%clk 0:00:18.3]} 50... Rc3+ {[%clk 0:00:11.7]} 51. Kg2 {[%clk 0:00:18.8]}
51... Ra3 {[%clk 0:00:11.6]} 52. Ra6 {[%clk 0:00:15.3]} 52... Kd5 {[%clk
0:00:11.9]} 53. Be1 {[%clk 0:00:14.7]} 53... a4 {[%clk 0:00:11.4]} 54. Rxd6+
{[%clk 0:00:15.2]} 54... Kxd6 {[%clk 0:00:10.3]} 55. Bb4+ {[%clk 0:00:15.4]}
55... Ke5 {[%clk 0:00:10.6]} 56. Bxa3 {[%clk 0:00:16.3]} 56... Kf4 {[%clk
0:00:10.6]} 57. Kh3 {[%clk 0:00:17]} 57... Kg5 {[%clk 0:00:11.1]} 58. Kg3 {[%clk
0:00:17.5]} 58... Kg6 {[%clk 0:00:11.2]} 59. Kf4 {[%clk 0:00:18]} 59... Kf6
{[%clk 0:00:11.7]} 60. g5+ {[%clk 0:00:18.3]} 60... Kg6 {[%clk 0:00:12.2]} 61.
Kg4 {[%clk 0:00:19]} 61... Kg7 {[%clk 0:00:12.7]} 62. Kf5 {[%clk 0:00:19.9]}
62... Kf7 {[%clk 0:00:12.9]} 63. g6+ {[%clk 0:00:20.2]} 63... Kg7 {[%clk
0:00:13.4]} 64. Kg5 {[%clk 0:00:20.3]} 64... Kg8 {[%clk 0:00:13.8]} 65. Bb2
{[%clk 0:00:15]} 65... Kf8 {[%clk 0:00:14]} 66. Kh6 {[%clk 0:00:14.8]} 66... Kg8
{[%clk 0:00:14.1]} 67. Ba3 {[%clk 0:00:12.3]} 67... Kh8 {[%clk 0:00:13.3]} 68.
Kg5 {[%clk 0:00:11.1]} 68... Kg7 {[%clk 0:00:13.5]} 69. Kf5 {[%clk 0:00:11.7]}
69... Kg8 {[%clk 0:00:13.9]} 70. Kf6 {[%clk 0:00:12.3]} 70... Kh8 {[%clk
0:00:14.3]} 71. g7+ {[%clk 0:00:11.6]} 71... Kg8 {[%clk 0:00:14.1]} 72. Bb4
{[%clk 0:00:11]} 72... Kh7 {[%clk 0:00:12.8]} 73. Kf7 {[%clk 0:00:10.8]} 73...
Kh6 {[%clk 0:00:13.3]} 74. g8=Q {[%clk 0:00:10.8]} 74... a3 {[%clk 0:00:13.5]}
75. Bxa3 {[%clk 0:00:10.6]} 75... Kh5 {[%clk 0:00:13.2]} 76. Qg3 {[%clk
0:00:10.7]} 76... Kh6 {[%clk 0:00:13.3]} 77. Qg6# {[%clk 0:00:11.5]} 1-0

[Event "Late-Titled-Tuesday-Blitz-November-28-2023"]
[Site "Chess.com"]
[Date "2023.11.28"]
[Round "1"]
[White "expii"]
[Black "TimGrutter03"]
[Result "1-0"]
[WhiteElo "2243"]
[BlackElo "2547"]
[TimeControl "180+1"]
[EndTime "14:08:45 PST"]
[Termination "expii won by checkmate"]

1. e4 {[%clk 0:02:56.3]} 1... d6 {[%clk 0:02:57.5]} 2. d4 {[%clk 0:02:55]} 2...
Nf6 {[%clk 0:02:56.6]} 3. Nc3 {[%clk 0:02:52.1]} 3... e5 {[%clk 0:02:56.5]} 4.
dxe5 {[%clk 0:02:51.7]} 4... dxe5 {[%clk 0:02:53.6]} 5. Qxd8+ {[%clk 0:02:52.6]}
5... Kxd8 {[%clk 0:02:53.9]} 6. Nf3 {[%clk 0:02:52.5]} 6... Bd6 {[%clk
0:02:46.7]} 7. Bg5 {[%clk 0:02:50.1]} 7... h6 {[%clk 0:02:38.2]} 8. Bxf6+ {[%clk
0:02:47.3]} 8... gxf6 {[%clk 0:02:39.1]} 9. Nd5 {[%clk 0:02:47.5]} 9... Nd7
{[%clk 0:02:33.3]} 10. Bc4 {[%clk 0:02:44.6]} 10... c6 {[%clk 0:02:30.4]} 11.
Ne3 {[%clk 0:02:43.7]} 11... Ke8 {[%clk 0:02:20]} 12. Nf5 {[%clk 0:02:39.8]}
12... Bf8 {[%clk 0:02:18.5]} 13. Rd1 {[%clk 0:02:35.4]} 13... Nb6 {[%clk
0:02:17.9]} 14. Bb3 {[%clk 0:02:32.3]} 14... Bxf5 {[%clk 0:02:15.7]} 15. exf5
{[%clk 0:02:33.2]} 15... Bc5 {[%clk 0:02:02.8]} 16. O-O {[%clk 0:02:27.6]} 16...
Ke7 {[%clk 0:02:01]} 17. Nd2 {[%clk 0:02:24.5]} 17... Rad8 {[%clk 0:01:29.7]}
18. Ne4 {[%clk 0:02:11.2]} 18... Bd6 {[%clk 0:01:30]} 19. Nxd6 {[%clk
0:02:07.8]} 19... Rxd6 {[%clk 0:01:30.9]} 20. Rxd6 {[%clk 0:02:07.6]} 20... Kxd6
{[%clk 0:01:31.8]} 21. Bxf7 {[%clk 0:02:07.7]} 21... Kc5 {[%clk 0:01:26.9]} 22.
Rd1 {[%clk 0:02:01.8]} 22... Rf8 {[%clk 0:01:14.1]} 23. Be6 {[%clk 0:01:59.7]}
23... Nd5 {[%clk 0:01:11.6]} 24. c3 {[%clk 0:01:54]} 24... a5 {[%clk 0:01:11.2]}
25. h3 {[%clk 0:01:49]} 25... b5 {[%clk 0:01:05.4]} 26. g3 {[%clk 0:01:34.1]}
26... a4 {[%clk 0:00:55.4]} 27. a3 {[%clk 0:01:21.7]} 27... Rd8 {[%clk
0:00:40.4]} 28. h4 {[%clk 0:01:11.7]} 28... Rd6 {[%clk 0:00:38.4]} 29. Kh2
{[%clk 0:01:07.9]} 29... Nc7 {[%clk 0:00:20.6]} 30. Rxd6 {[%clk 0:01:06.3]}
30... Kxd6 {[%clk 0:00:21.5]} 31. Bf7 {[%clk 0:01:04.7]} 31... Na6 {[%clk
0:00:20.3]} 32. c4 {[%clk 0:00:44.4]} 32... b4 {[%clk 0:00:11.7]} 33. Kh3 {[%clk
0:00:32.5]} 33... b3 {[%clk 0:00:08.8]} 34. Bh5 {[%clk 0:00:26.2]} 34... Nc5
{[%clk 0:00:08.5]} 35. Be2 {[%clk 0:00:24.7]} 35... e4 {[%clk 0:00:04.4]} 36.
Kg2 {[%clk 0:00:22.4]} 36... Ke5 {[%clk 0:00:03.4]} 37. Kf1 {[%clk 0:00:22.3]}
37... Kxf5 {[%clk 0:00:03.2]} 38. Ke1 {[%clk 0:00:21]} 38... Ke5 {[%clk
0:00:03.8]} 39. Kd2 {[%clk 0:00:21.2]} 39... Kd4 {[%clk 0:00:04.4]} 40. g4
{[%clk 0:00:20.4]} 40... Ne6 {[%clk 0:00:04.3]} 41. f3 {[%clk 0:00:17.3]} 41...
e3+ {[%clk 0:00:03.6]} 42. Ke1 {[%clk 0:00:17.2]} 42... Nf4 {[%clk 0:00:04]} 43.
Kd1 {[%clk 0:00:17.4]} 43... Nd3 {[%clk 0:00:04.1]} 44. Bxd3 {[%clk 0:00:16.2]}
44... Kxd3 {[%clk 0:00:05]} 45. f4 {[%clk 0:00:15.9]} 45... e2+ {[%clk
0:00:05.3]} 46. Ke1 {[%clk 0:00:16]} 46... Kc2 {[%clk 0:00:06.2]} 47. g5 {[%clk
0:00:16.4]} 47... Kxb2 {[%clk 0:00:04.8]} 48. gxf6 {[%clk 0:00:14.9]} 48... Kc2
{[%clk 0:00:03.9]} 49. f7 {[%clk 0:00:14.9]} 49... b2 {[%clk 0:00:04.8]} 50.
f8=Q {[%clk 0:00:14.1]} 50... b1=Q+ {[%clk 0:00:05.7]} 51. Kxe2 {[%clk
0:00:14.3]} 51... Qd1+ {[%clk 0:00:06]} 52. Kf2 {[%clk 0:00:14.6]} 52... Qd4+
{[%clk 0:00:05.1]} 53. Kf3 {[%clk 0:00:14.7]} 53... Qxc4 {[%clk 0:00:04.4]} 54.
Qf5+ {[%clk 0:00:14.3]} 54... Kb2 {[%clk 0:00:03.7]} 55. Qf6+ {[%clk 0:00:14.4]}
55... Kxa3 {[%clk 0:00:03.9]} 56. Qxh6 {[%clk 0:00:13.8]} 56... Qd5+ {[%clk
0:00:03.1]} 57. Kg4 {[%clk 0:00:14.1]} 57... Kb3 {[%clk 0:00:03.4]} 58. Qh7
{[%clk 0:00:07.8]} 58... a3 {[%clk 0:00:03]} 59. Qb1+ {[%clk 0:00:07.9]} 59...
Kc3 {[%clk 0:00:03.2]} 60. h5 {[%clk 0:00:08.8]} 60... a2 {[%clk 0:00:03.2]} 61.
Qa1+ {[%clk 0:00:08.6]} 61... Kb3 {[%clk 0:00:03.9]} 62. h6 {[%clk 0:00:08.3]}
62... Qg2+ {[%clk 0:00:04.5]} 63. Kf5 {[%clk 0:00:08.2]} 63... Qb2 {[%clk
0:00:04.5]} 64. Qxb2+ {[%clk 0:00:07.4]} 64... Kxb2 {[%clk 0:00:04.5]} 65. h7
{[%clk 0:00:08.1]} 65... a1=Q {[%clk 0:00:02.6]} 66. h8=Q+ {[%clk 0:00:08.2]}
66... Ka2 {[%clk 0:00:02.7]} 67. Qxa1+ {[%clk 0:00:09.1]} 67... Kxa1 {[%clk
0:00:03.6]} 68. Ke5 {[%clk 0:00:09]} 68... Kb2 {[%clk 0:00:03.5]} 69. Kd6 {[%clk
0:00:07.6]} 69... Kc3 {[%clk 0:00:04.4]} 70. f5 {[%clk 0:00:08.1]} 70... Kd4
{[%clk 0:00:04.6]} 71. f6 {[%clk 0:00:07]} 71... c5 {[%clk 0:00:05.5]} 72. f7
{[%clk 0:00:07.7]} 72... c4 {[%clk 0:00:06.4]} 73. f8=Q {[%clk 0:00:08]} 73...
Kd3 {[%clk 0:00:06.8]} 74. Qf5+ {[%clk 0:00:07.8]} 74... Kd2 {[%clk 0:00:06.6]}
75. Qd5+ {[%clk 0:00:07.3]} 75... Kc3 {[%clk 0:00:07.1]} 76. Kc5 {[%clk
0:00:07.6]} 76... Kb3 {[%clk 0:00:07.3]} 77. Qxc4+ {[%clk 0:00:08.5]} 77... Ka3
{[%clk 0:00:07.8]} 78. Kb5 {[%clk 0:00:07.7]} 78... Kb2 {[%clk 0:00:07.7]} 79.
Kb4 {[%clk 0:00:08.4]} 79... Kb1 {[%clk 0:00:07.1]} 80. Qe2 {[%clk 0:00:08.9]}
80... Kc1 {[%clk 0:00:07.5]} 81. Kb3 {[%clk 0:00:09.8]} 81... Kb1 {[%clk
0:00:06.7]} 82. Qb2# {[%clk 0:00:10.3]} 1-0

[Event "Late-Titled-Tuesday-Blitz-November-28-2023"]
[Site "Chess.com"]
[Date "2023.11.28"]
[Round "1"]
[White "DamianoLew95"]
[Black "Schattman"]
[Result "1/2-1/2"]
[WhiteElo "2756"]
[BlackElo "2424"]
[TimeControl "180+1"]
[EndTime "14:08:52 PST"]
[Termination "Game drawn by repetition"]

1. e4 {[%clk 0:03:00.9]} 1... c5 {[%clk 0:02:56.5]} 2. Nf3 {[%clk 0:03:01]} 2...
e6 {[%clk 0:02:56.9]} 3. d3 {[%clk 0:03:00.6]} 3... d5 {[%clk 0:02:55.5]} 4.
Nbd2 {[%clk 0:03:01.5]} 4... Nf6 {[%clk 0:02:55.3]} 5. g3 {[%clk 0:02:56.5]}
5... Nc6 {[%clk 0:02:55.2]} 6. Bg2 {[%clk 0:02:55.8]} 6... Be7 {[%clk
0:02:55.5]} 7. O-O {[%clk 0:02:55.5]} 7... O-O {[%clk 0:02:55.4]} 8. Re1 {[%clk
0:02:49.9]} 8... b5 {[%clk 0:02:54.3]} 9. e5 {[%clk 0:02:49.8]} 9... Nd7 {[%clk
0:02:53.7]} 10. Nf1 {[%clk 0:02:50.3]} 10... a5 {[%clk 0:02:51.3]} 11. h4 {[%clk
0:02:49.8]} 11... Re8 {[%clk 0:02:48.5]} 12. h5 {[%clk 0:02:49.1]} 12... h6
{[%clk 0:02:48.6]} 13. N1h2 {[%clk 0:02:48.7]} 13... a4 {[%clk 0:02:47.7]} 14.
Ng4 {[%clk 0:02:48.2]} 14... Bf8 {[%clk 0:02:47.7]} 15. Bf4 {[%clk 0:02:43.7]}
15... a3 {[%clk 0:02:45.3]} 16. bxa3 {[%clk 0:02:34.5]} 16... Rxa3 {[%clk
0:02:35.3]} 17. Qc1 {[%clk 0:02:34.4]} 17... Ra4 {[%clk 0:02:29.9]} 18. a3
{[%clk 0:02:22.8]} 18... Kh7 {[%clk 0:02:18.5]} 19. c3 {[%clk 0:02:17.3]} 19...
Ne7 {[%clk 0:02:06.5]} 20. d4 {[%clk 0:02:14.6]} 20... Nf5 {[%clk 0:01:54.2]}
21. Qb1 {[%clk 0:02:09.3]} 21... Kh8 {[%clk 0:01:40.8]} 22. Qxb5 {[%clk
0:02:03.6]} 22... Ra5 {[%clk 0:01:35.2]} 23. Qb2 {[%clk 0:01:49.2]} 23... Ba6
{[%clk 0:01:34.2]} 24. Ne3 {[%clk 0:01:36.3]} 24... Nxe3 {[%clk 0:01:28.3]} 25.
Bxe3 {[%clk 0:01:37.2]} 25... Nb6 {[%clk 0:01:17.9]} 26. Bf4 {[%clk 0:01:29.7]}
26... Nc4 {[%clk 0:01:11.3]} 27. Qc1 {[%clk 0:01:28.5]} 27... Qd7 {[%clk
0:01:02.7]} 28. g4 {[%clk 0:01:11.6]} 28... cxd4 {[%clk 0:00:38.6]} 29. cxd4
{[%clk 0:01:12.5]} 29... Rc8 {[%clk 0:00:37.1]} 30. g5 {[%clk 0:01:00.5]} 30...
Bxa3 {[%clk 0:00:33.2]} 31. Qd1 {[%clk 0:00:57.7]} 31... Bb4 {[%clk 0:00:30.5]}
32. Rxa5 {[%clk 0:00:49.7]} 32... Bxa5 {[%clk 0:00:30.3]} 33. Re2 {[%clk
0:00:47.8]} 33... Rb8 {[%clk 0:00:15.9]} 34. Qc1 {[%clk 0:00:33.7]} 34... Qb7
{[%clk 0:00:13.4]} 35. gxh6 {[%clk 0:00:29.8]} 35... Qb1 {[%clk 0:00:13.1]} 36.
hxg7+ {[%clk 0:00:25.5]} 36... Kxg7 {[%clk 0:00:13.3]} 37. h6+ {[%clk
0:00:25.1]} 37... Kg8 {[%clk 0:00:11.4]} 38. Kh2 {[%clk 0:00:20]} 38... Qxc1
{[%clk 0:00:10.8]} 39. Bxc1 {[%clk 0:00:20.9]} 39... Rb1 {[%clk 0:00:10.4]} 40.
Bf4 {[%clk 0:00:20.2]} 40... Rb2 {[%clk 0:00:09.8]} 41. Rxb2 {[%clk 0:00:19.6]}
41... Nxb2 {[%clk 0:00:10.3]} 42. Bg5 {[%clk 0:00:18]} 42... Nd3 {[%clk
0:00:09.3]} 43. Bf6 {[%clk 0:00:17.3]} 43... Nf4 {[%clk 0:00:06.6]} 44. Ng5
{[%clk 0:00:16.8]} 44... Bd3 {[%clk 0:00:06.6]} 45. Kg3 {[%clk 0:00:14.5]} 45...
Nxg2 {[%clk 0:00:06]} 46. Kxg2 {[%clk 0:00:14.9]} 46... Bb6 {[%clk 0:00:06.6]}
47. f4 {[%clk 0:00:11.8]} 47... Bxd4 {[%clk 0:00:06.2]} 48. Kf3 {[%clk
0:00:12.3]} 48... Bf5 {[%clk 0:00:05.8]} 49. Ke2 {[%clk 0:00:12]} 49... Bb2
{[%clk 0:00:05.5]} 50. Kd2 {[%clk 0:00:11.8]} 50... Bd4 {[%clk 0:00:05.2]} 51.
Be7 {[%clk 0:00:10.3]} 51... Bb6 {[%clk 0:00:04.7]} 52. Bb4 {[%clk 0:00:10.2]}
52... Bf2 {[%clk 0:00:04.5]} 53. Ke2 {[%clk 0:00:10]} 53... Bh4 {[%clk
0:00:04.4]} 54. Be7 {[%clk 0:00:03.6]} 54... Bxg5 {[%clk 0:00:04.1]} 55. fxg5
{[%clk 0:00:03.2]} 55... Kh7 {[%clk 0:00:04]} 56. Ke3 {[%clk 0:00:03.7]} 56...
Bg6 {[%clk 0:00:04.1]} 57. Kd4 {[%clk 0:00:04.2]} 57... Bf5 {[%clk 0:00:04.3]}
58. Kc5 {[%clk 0:00:04.6]} 58... Bg6 {[%clk 0:00:04.6]} 59. Bd8 {[%clk
0:00:05.1]} 59... Bh5 {[%clk 0:00:04.9]} 60. Bb6 {[%clk 0:00:05.4]} 60... Bg6
{[%clk 0:00:05.3]} 61. Kd6 {[%clk 0:00:05.6]} 61... Bh5 {[%clk 0:00:05.3]} 62.
Be3 {[%clk 0:00:06.3]} 62... Bg6 {[%clk 0:00:05.3]} 63. Ke7 {[%clk 0:00:06.9]}
63... Bh5 {[%clk 0:00:05.4]} 64. Kf6 {[%clk 0:00:07.5]} 64... Bg6 {[%clk
0:00:05.6]} 65. Bc5 {[%clk 0:00:07.8]} 65... Bh5 {[%clk 0:00:05.7]} 66. Bd4
{[%clk 0:00:07.6]} 66... Bg6 {[%clk 0:00:05.7]} 67. Ke7 {[%clk 0:00:06.7]} 67...
Bh5 {[%clk 0:00:05.9]} 68. Kd6 {[%clk 0:00:07.4]} 68... Bg6 {[%clk 0:00:06.1]}
69. Kc5 {[%clk 0:00:08]} 69... Bh5 {[%clk 0:00:06.3]} 70. Kb4 {[%clk 0:00:08.6]}
70... Bg6 {[%clk 0:00:06.6]} 71. Kc3 {[%clk 0:00:09.2]} 71... Bf5 {[%clk
0:00:07]} 72. Kd2 {[%clk 0:00:09.8]} 72... Bg6 {[%clk 0:00:07.5]} 73. Ke2 {[%clk
0:00:09.9]} 73... Bf5 {[%clk 0:00:08.1]} 74. Kf3 {[%clk 0:00:10.3]} 74... Bg6
{[%clk 0:00:08.5]} 75. Kg3 {[%clk 0:00:10.4]} 75... Bf5 {[%clk 0:00:08.6]} 76.
Kh4 {[%clk 0:00:11]} 76... Bg6 {[%clk 0:00:08.7]} 77. Kh3 {[%clk 0:00:11.5]}
77... Be4 {[%clk 0:00:09]} 78. Kg3 {[%clk 0:00:12.2]} 78... Bg6 {[%clk
0:00:09.5]} 79. Kh3 {[%clk 0:00:11.3]} 79... Bf5+ {[%clk 0:00:09.8]} 80. Kg3
{[%clk 0:00:11.9]} 80... Bg6 {[%clk 0:00:10.7]} 81. Kh3 {[%clk 0:00:12.5]}
1/2-1/2

[Event "Late-Titled-Tuesday-Blitz-November-28-2023"]
[Site "Chess.com"]
[Date "2023.11.28"]
[Round "1"]
[White "rasmussvane"]
[Black "Slovak_fighter2000"]
[Result "1-0"]
[WhiteElo "2971"]
[BlackElo "2475"]
[TimeControl "180+1"]
[EndTime "14:08:54 PST"]
[Termination "rasmussvane won on time"]

1. Nf3 {[%clk 0:02:58.5]} 1... Nf6 {[%clk 0:02:59.8]} 2. g3 {[%clk 0:02:55.6]}
2... e6 {[%clk 0:02:57.9]} 3. Bg2 {[%clk 0:02:54.3]} 3... d5 {[%clk 0:02:58.8]}
4. O-O {[%clk 0:02:53.1]} 4... Be7 {[%clk 0:02:59.7]} 5. c4 {[%clk 0:02:52.7]}
5... O-O {[%clk 0:02:59.7]} 6. b3 {[%clk 0:02:51.9]} 6... c5 {[%clk 0:02:58.2]}
7. cxd5 {[%clk 0:02:50.6]} 7... Nxd5 {[%clk 0:02:57.2]} 8. Nc3 {[%clk 0:02:50]}
8... Nxc3 {[%clk 0:02:53.5]} 9. dxc3 {[%clk 0:02:50.2]} 9... Nc6 {[%clk
0:02:54.2]} 10. Be3 {[%clk 0:02:42.2]} 10... Qc7 {[%clk 0:02:46.4]} 11. Qc2
{[%clk 0:02:39.5]} 11... e5 {[%clk 0:02:40.8]} 12. Ng5 {[%clk 0:02:21.3]} 12...
Bxg5 {[%clk 0:02:38.1]} 13. Bxg5 {[%clk 0:02:22.2]} 13... Be6 {[%clk 0:02:32.3]}
14. Be3 {[%clk 0:02:19.4]} 14... b6 {[%clk 0:02:25.4]} 15. Rfd1 {[%clk
0:02:18.4]} 15... Rad8 {[%clk 0:02:24.2]} 16. h3 {[%clk 0:02:10.2]} 16... Ne7
{[%clk 0:02:14]} 17. Rxd8 {[%clk 0:02:02.2]} 17... Rxd8 {[%clk 0:02:13.3]} 18.
Rd1 {[%clk 0:02:02.8]} 18... Rxd1+ {[%clk 0:02:06.1]} 19. Qxd1 {[%clk
0:02:03.7]} 19... Qd7 {[%clk 0:02:06.4]} 20. Qxd7 {[%clk 0:01:28.7]} 20... Bxd7
{[%clk 0:02:07.3]} 21. Bd2 {[%clk 0:01:29.2]} 21... Bc6 {[%clk 0:02:04]} 22. e4
{[%clk 0:01:27]} 22... Bb5 {[%clk 0:01:51.4]} 23. f4 {[%clk 0:01:22.4]} 23...
Nc6 {[%clk 0:01:47.4]} 24. Kf2 {[%clk 0:01:05.4]} 24... f6 {[%clk 0:01:43.5]}
25. Ke3 {[%clk 0:01:04.3]} 25... Kf7 {[%clk 0:01:42.3]} 26. h4 {[%clk
0:01:04.5]} 26... Ke7 {[%clk 0:01:24.3]} 27. Bh3 {[%clk 0:01:04.4]} 27... Ba6
{[%clk 0:01:23.4]} 28. Bc1 {[%clk 0:01:02.5]} 28... Kd8 {[%clk 0:01:17.4]} 29.
Be6 {[%clk 0:01:01.7]} 29... Ke7 {[%clk 0:01:11.2]} 30. Bg8 {[%clk 0:01:01.5]}
30... h6 {[%clk 0:01:10.4]} 31. Bd5 {[%clk 0:01:00.8]} 31... Kd6 {[%clk
0:01:08.5]} 32. Bf7 {[%clk 0:00:56.9]} 32... Bc8 {[%clk 0:01:06.9]} 33. Bh5
{[%clk 0:00:56.7]} 33... Be6 {[%clk 0:01:05.4]} 34. f5 {[%clk 0:00:54.4]} 34...
Bd7 {[%clk 0:01:02.2]} 35. Be2 {[%clk 0:00:54.7]} 35... Be8 {[%clk 0:00:52.8]}
36. g4 {[%clk 0:00:54]} 36... Ne7 {[%clk 0:00:46.7]} 37. Kf3 {[%clk 0:00:49.8]}
37... Bf7 {[%clk 0:00:45]} 38. Kf2 {[%clk 0:00:47.7]} 38... Ng8 {[%clk
0:00:42.6]} 39. g5 {[%clk 0:00:47.3]} 39... hxg5 {[%clk 0:00:42.8]} 40. hxg5
{[%clk 0:00:48.2]} 40... fxg5 {[%clk 0:00:43.3]} 41. Bxg5 {[%clk 0:00:47.8]}
41... Nf6 {[%clk 0:00:43.7]} 42. Ke3 {[%clk 0:00:45.9]} 42... Ke7 {[%clk
0:00:39.2]} 43. Bb5 {[%clk 0:00:44.1]} 43... Kd6 {[%clk 0:00:36.8]} 44. Ba6
{[%clk 0:00:43.6]} 44... Be8 {[%clk 0:00:35.5]} 45. Bd3 {[%clk 0:00:43.5]} 45...
Bc6 {[%clk 0:00:35.6]} 46. Bh4 {[%clk 0:00:43.8]} 46... Be8 {[%clk 0:00:34.2]}
47. Be1 {[%clk 0:00:38.7]} 47... Bc6 {[%clk 0:00:33.9]} 48. a3 {[%clk
0:00:37.9]} 48... Be8 {[%clk 0:00:33.6]} 49. b4 {[%clk 0:00:37.8]} 49... Bc6
{[%clk 0:00:30.8]} 50. Kf3 {[%clk 0:00:35.2]} 50... Be8 {[%clk 0:00:31.3]} 51.
c4 {[%clk 0:00:34.3]} 51... Bc6 {[%clk 0:00:29.6]} 52. Bc3 {[%clk 0:00:34.2]}
52... Nd7 {[%clk 0:00:27.4]} 53. b5 {[%clk 0:00:28]} 53... Bb7 {[%clk
0:00:27.5]} 54. a4 {[%clk 0:00:28.3]} 54... Nf6 {[%clk 0:00:27.6]} 55. a5 {[%clk
0:00:26]} 55... Bc8 {[%clk 0:00:23.5]} 56. Bd2 {[%clk 0:00:23.4]} 56... Bb7
{[%clk 0:00:22.4]} 57. a6 {[%clk 0:00:23.4]} 57... Bc8 {[%clk 0:00:22.5]} 58.
Kg3 {[%clk 0:00:23.3]} 58... Bd7 {[%clk 0:00:17.4]} 59. Kh4 {[%clk 0:00:21.8]}
59... Be8 {[%clk 0:00:17.6]} 60. Bg5 {[%clk 0:00:15.2]} 60... Ke7 {[%clk
0:00:15.4]} 61. Be3 {[%clk 0:00:12.8]} 61... Bf7 {[%clk 0:00:15.5]} 62. Bxc5+
{[%clk 0:00:08.4]} 62... bxc5 {[%clk 0:00:07.4]} 63. b6 {[%clk 0:00:09.3]} 63...
Nd7 {[%clk 0:00:06.4]} 64. bxa7 {[%clk 0:00:08.5]} 64... Nb6 {[%clk 0:00:06.6]}
65. Kg5 {[%clk 0:00:07.5]} 65... Na8 {[%clk 0:00:06.7]} 66. Be2 {[%clk
0:00:06.1]} 66... Nb6 {[%clk 0:00:06.9]} 67. Bd3 {[%clk 0:00:06.3]} 67... Kd6
{[%clk 0:00:03.7]} 68. Bc2 {[%clk 0:00:04.9]} 68... Ke7 {[%clk 0:00:02.1]} 69.
Ba4 {[%clk 0:00:04.6]} 69... Na8 {[%clk 0:00:02.3]} 70. Bc6 {[%clk 0:00:05]}
70... Nb6 {[%clk 0:00:02.5]} 71. a8=Q {[%clk 0:00:04.2]} 71... Nxa8 {[%clk
0:00:02.6]} 72. Bxa8 {[%clk 0:00:05.1]} 72... Bxc4 {[%clk 0:00:02.9]} 73. a7
{[%clk 0:00:05.6]} 1-0